Cogmind - Beta 11 @@@ ROGUE MODE // 2022.03.19 @ 01:47:42 Player: rusmal Result: Escaped! Performance ------------- Evolutions (9) 4500 Regions Visited (16) 3200 Robots Destroyed (128) 640 Value Destroyed (3941) 3941 Prototype IDs (48) 960 Alien Tech Used (0) 0 Bonus (3355) 3355 TOTAL SCORE: 16596 Bonus ------- High Alert Combat Kills 55 Aligned with FarCom 300 Win 3000 Cogmind --------- Core Integrity 1517/1600 Matter 235/300 Energy 316/400 System Corruption 0% Temperature Cool (18) Movement Flying (25) Location To Epsilon Eridani Parts ------- > --- POWER (2) -------- Micro Nuclear Core Quantum Reactor > --- PROPULSION (8) --- Improved Cesium-ion Thruster Improved Cesium-ion Thruster Field Propulsion Drive Field Propulsion Drive Q-thruster Impulse Thruster Array > --- UTILITY (13) ----- Medium Storage Unit Enhanced Optical Array Advanced Terrain Scanner Advanced Terrain Scan Processor Advanced ECM Suite Hacking Suite Hacking Suite Hacking Suite Hacking Suite Improved Hacking Suite Improved Hacking Suite Improved System Shield Advanced System Shield > --- WEAPON (2) ------- Centrium Greatsword > --- INVENTORY (10) --- Enhanced Fission Core Quantum Reactor Nanoactuators Improved Transmission Jammer Improved Phase Shifter Enhanced Quantum Rifle Improved Grenade Launcher Peak State ------------ > --- POWER ------------ Enhanced Fission Core Quantum Reactor > --- PROPULSION ------- Improved Cesium-ion Thruster Field Propulsion Drive Field Propulsion Drive Nuclear Pulse Array Q-thruster Impulse Thruster Array > --- UTILITY ---------- Medium Storage Unit Enhanced Optical Array Advanced Terrain Scanner Advanced Terrain Scan Processor Experimental Armor Integrity Analyzer Advanced ECM Suite Advanced Reaction Control System Hacking Suite Hacking Suite Hacking Suite Improved Hacking Suite Improved System Shield Advanced System Shield > --- WEAPON ----------- Centrium Greatsword > --- INVENTORY -------- Micro Nuclear Core Quantum Reactor Surge Thruster Improved Cesium-ion Thruster Nanoactuators Improved Transmission Jammer Improved Phase Shifter Hacking Suite Enhanced Quantum Rifle Improved Grenade Launcher [Rating: 151] Favorites ----------- Power Improved Deuterium Engine Engine Improved Deuterium Engine Power Core Light Nuclear Core Reactor Light Antimatter Reactor Propulsion Improved Treads Treads Improved Treads Leg Aluminum Leg Flight Unit Improved Flight Unit Utility Hacking Suite Device Structural Scanner Storage Large Storage Unit Processor Advanced Visual Processing Unit Hackware Hacking Suite Protection Improved Medium Armor Plating Weapon Minigun Energy Gun Medium Laser Energy Cannon Guided Plasma Cannon Ballistic Gun Minigun Launcher Grenade Launcher Slashing Weapon Greatsword Build | -11 -10 -10 -9 -9 -9 -8 -8 -7 -6 -5 -5 -5 -4 -3 -2 -1 ------- Run | Scr Mat Min Mat Min Exi Min Mat Fac Fac Fac Was Fac Fac Res Res Acc Slots Evolved 18 | . . . 2 . . . 2 2 2 2 . . 2 2 2 2 Power 1 | . . . . . . . . . . . . . 1 . . . Propulsion 6 | . . . 1 . . . . 1 1 . . . . 1 2 . Utility 11 | . . . 1 . . . 2 1 1 2 . . 1 1 . 2 Weapon . | . . . . . . . . . . . . . . . . . Parts Attached 150 | 5 17 . 29 2 1 1 26 12 14 10 1 8 3 6 4 11 Power 19 | 1 2 . 4 1 . . 2 2 1 2 . 1 . 1 . 2 Engine 9 | 1 2 . 3 1 . . 1 1 . . . . . . . . Core 8 | . . . 1 . . . 1 1 1 1 . 1 . 1 . 1 Reactor 2 | . . . . . . . . . . 1 . . . . . 1 Propulsion 48 | 1 6 . 13 . . . 9 5 3 2 . 2 . 1 3 3 Treads 28 | 1 5 . 13 . . . 9 . . . . . . . . . Leg 1 | . 1 . . . . . . . . . . . . . . . Wheel . | . . . . . . . . . . . . . . . . . Hover . | . . . . . . . . . . . . . . . . . Flight 19 | . . . . . . . . 5 3 2 . 2 . 1 3 3 Utility 48 | 1 3 . 2 1 . 1 8 3 7 4 . 5 3 3 1 6 Device 19 | . 1 . . . . . 1 . 5 1 . 4 2 2 1 2 Storage 3 | 1 1 . . . . . . 1 . . . . . . . . Processor 5 | . . . . . . 1 1 . 2 . . . . . . 1 Hackware 13 | . . . . . . . 2 2 . 3 . 1 1 1 . 3 Protection 8 | . 1 . 2 1 . . 4 . . . . . . . . . Artifact . | . . . . . . . . . . . . . . . . . Weapon 35 | 2 6 . 10 . 1 . 7 2 3 2 1 . . 1 . . Energy Gun 2 | 1 1 . . . . . . . . . . . . . . . Energy Cannon 2 | . . . . . 1 . 1 . . . . . . . . . Ballistic Gun 16 | 1 3 . 7 . . . 5 . . . . . . . . . Ballistic Cannon . | . . . . . . . . . . . . . . . . . Launcher 7 | . 2 . 3 . . . 1 . . 1 . . . . . . Special Weapon . | . . . . . . . . . . . . . . . . . Impact Weapon . | . . . . . . . . . . . . . . . . . Slashing Weapon 8 | . . . . . . . . 2 3 1 1 . . 1 . . Piercing Weapon . | . . . . . . . . . . . . . . . . . Special Melee Weapon . | . . . . . . . . . . . . . . . . . Unidentified Prototypes 9 | . . . 1 . . . . 2 . 1 1 3 . . . 1 Parts Lost 12 | . 3 . 3 . . . 1 . 1 1 . . . . . 3 Power 4 | . 1 . 2 . . . . . . 1 . . . . . . Propulsion 4 | . 1 . . . . . . . 1 . . . . . . 2 Utility 3 | . . . 1 . . . 1 . . . . . . . . 1 Weapon 1 | . 1 . . . . . . . . . . . . . . . Highest Loss Streak 3 | . 3 . 1 . . . 1 . 1 1 . . . . . 3 To Critical Strikes . | . . . . . . . . . . . . . . . . . Average Slot Usage (%) 96 | . 97 100 99 100 100 100 98 86 92 90 88 88 84 89 89 87 Engine 8 | . 13 14 10 11 11 11 7 . . . . . . . . . Core 1 | . . . . . . . 1 6 6 1 . 1 5 9 8 4 Treads 22 | . 25 28 32 33 33 33 26 1 . . . . . . . . Flight 6 | . . . . . . . . 27 32 25 23 23 21 23 28 24 Device 6 | . 8 14 11 11 11 4 . . 5 5 5 5 5 9 8 11 Storage 9 | . 14 14 11 11 11 11 9 7 6 5 5 5 5 4 4 4 Processor 4 | . . . . . . 6 9 7 11 11 11 11 10 9 8 8 Hackware 10 | . . . . . . . 16 24 21 29 29 29 31 28 26 27 Protection 6 | . 3 . 10 11 11 11 8 . . . . . . . . . Energy Cannon 2 | . . . . . 4 11 6 . . . . . . . . . Ballistic Gun 11 | . 23 14 21 11 6 . 11 . . . . . . . . . Launcher 2 | . . 14 . 11 11 11 . . . . . . . . . . Slashing Weapon 1 | . . . . . . . . 6 5 4 5 5 5 3 4 4 Naked Turns . | . . . . . . . . . . . . . . . . . Heaviest Build 55 | 13 29 29 39 44 51 51 52 43 23 29 28 29 31 38 38 55 Greatest Support 69 | 20 40 40 69 69 69 69 69 64 26 30 30 33 33 39 55 57 Greatest Overweight (x) 1 | . 1 . . . . . 1 . . . . . . . . . Average Overweight (x) . | . . . . . . . . . . . . . . . . . Largest Inventory Capacity 15 | 8 15 15 15 15 15 15 15 15 10 10 10 10 10 10 10 10 Average Capacity 12 | 6 9 15 15 15 15 15 15 10 10 10 10 10 10 10 10 10 Most Carried 15 | 7 15 15 15 15 15 15 15 15 10 10 10 10 10 10 10 10 Average Carried 12 | 4 8 14 14 14 15 15 14 10 9 9 10 9 9 9 9 9 Final Capacity 15 | 8 15 15 15 15 15 15 15 10 10 10 10 10 10 10 10 10 Final Carried 15 | 7 15 15 15 15 15 15 15 10 10 10 10 10 10 10 10 7 Class Distribution -------------------- 56% | Mutant 12% | Hacker-Scout 12% | Hacker-Mutant 6% | Scavenger-Mutant 5% | Hacker-Sprinter 4% | Wizard-Scout Dominant Class ---------------- Mutant | -10/Materials Mutant | -10/Mines Mutant | -9/Materials Mutant | -9/Mines Mutant | -9/Exiles Mutant | -8/Mines Hacker-Mutant | -8/Materials Hacker-Sprinter | -7/Factory Hacker-Scout | -6/Factory Hacker-Scout | -5/Factory Hacker-Scout | -5/Waste Hacker-Scout | -5/Factory Wizard-Scout | -4/Factory Wizard-Ninja | -3/Research Wizard-Scout | -2/Research Wizard-Ninja | -1/Access Resources | -11 -10 -10 -9 -9 -9 -8 -8 -7 -6 -5 -5 -5 -4 -3 -2 -1 ----------- Run | Scr Mat Min Mat Min Exi Min Mat Fac Fac Fac Was Fac Fac Res Res Acc Matter Collected 3128 | 177 419 141 913 59 85 10 709 90 139 . . . . 237 109 40 Remotely . | . . . . . . . . . . . . . . . . . Salvage Created 5346 | . 577 158 1320 73 . . 2041 21 329 116 . 127 . 221 132 231 Parts 293 | . 36 7 83 8 . . 101 6 24 6 . 5 . 11 1 5 Haulers Intercepted 14 | . 2 . 2 . . . 3 . 2 . . 1 . 1 1 2 Recyclers Shooed 4 | . 1 . 3 . . . . . . . . . . . . . Parts Field Recycled . | . . . . . . . . . . . . . . . . . Retrieved Matter . | . . . . . . . . . . . . . . . . . Parts Self-Destructed . | . . . . . . . . . . . . . . . . . Prevented . | . . . . . . . . . . . . . . . . . Kills | -11 -10 -10 -9 -9 -9 -8 -8 -7 -6 -5 -5 -5 -4 -3 -2 -1 ------- Run | Scr Mat Min Mat Min Exi Min Mat Fac Fac Fac Was Fac Fac Res Res Acc Combat Hostiles Destroyed 87 | . 13 2 29 6 . . 33 . 2 2 . . . . . . Melee 4 | . . . . . . . . . 2 2 . . . . . . Guns 44 | . 10 . 24 . . . 10 . . . . . . . . . Cannons 21 | . . . . . . . 21 . . . . . . . . . AOE 18 | . 3 2 5 6 . . 2 . . . . . . . . . Classes Destroyed 13 | . 4 2 1 . . . 4 . 1 . . . . 1 . . Worker 1 | . . . . . . . . . . . . . . 1 . . Builder 2 | . . . . . . . 1 . . . . . . 1 . . Tunneler 1 | . . 1 . . . . . . . . . . . . . . Hauler 14 | . 2 . 2 . . . 3 . 2 . . 1 . 1 1 2 Recycler 7 | . . 1 2 . . . 4 . . . . . . . . . Operator 14 | . 1 . 3 . . . 2 2 2 . . 1 . 1 1 1 Watcher 2 | . . . . . . . 1 . . . . . . 1 . . Swarmer 15 | . 3 . 8 4 . . . . . . . . . . . . Grunt 47 | . 10 2 12 2 . . 21 . . . . . . . . . Duelist 1 | . . . . . . . 1 . . . . . . . . . Sentry 18 | . . . 9 . . . 9 . . . . . . . . . Hunter 2 | . . . . . . . 2 . . . . . . . . . Programmer 4 | . . . . . . . . . 2 2 . . . . . . Best Kill Streak 5 | . 3 4 4 4 . . 5 1 1 2 . 1 . 2 2 2 Combat Bots Only 4 | . 3 2 4 4 . . 4 . 1 2 . . . . . . Max Kills in Single Turn 3 | . 1 3 3 2 . . 1 1 1 1 . 1 . 1 1 1 Gunslinging . | . . . . . . . . . . . . . . . . . Exploded 3 | . 1 1 3 2 . . 1 . . . . . . . . . Melee 1 | . . . . . . . . . 1 1 . . . . . . Uniques/NPCs Destroyed . | . . . . . . . . . . . . . . . . . Combat | -11 -10 -10 -9 -9 -9 -8 -8 -7 -6 -5 -5 -5 -4 -3 -2 -1 -------- Run | Scr Mat Min Mat Min Exi Min Mat Fac Fac Fac Was Fac Fac Res Res Acc Damage Taken 3908 | . 813 33 908 149 . . 1143 . 122 167 . 47 . 197 27 302 Core 812 | . 185 . 171 21 . . 158 . 30 39 . . . 98 27 83 Absorbed by Shields . | . . . . . . . . . . . . . . . . . Redirected to Shielding 22 | . 22 . . . . . . . . . . . . . . . Regen/Repaired (Parts) 409 | . 34 . 30 . . . 48 92 . . . . . 205 . . Core Remaining (%) 84 | 100 . 26 . . . 52 71 100 96 . . 96 100 92 98 94 Volleys Fired 299 | . 83 4 81 5 . . 126 . . . . . . . . . Largest 2 | . 2 1 2 1 . . 2 . . . . . . . . . Hottest 120 | . 70 30 50 30 . . 120 . . . . . . . . . Shots Fired 480 | . 156 4 157 5 . . 158 . . . . . . . . . Gun 397 | . 149 . 152 . . . 96 . . . . . . . . . Cannon 55 | . . . . . . . 55 . . . . . . . . . Launcher 28 | . 7 4 5 5 . . 7 . . . . . . . . . Special . | . . . . . . . . . . . . . . . . . Kinetic 352 | . 104 . 152 . . . 96 . . . . . . . . . Thermal 100 | . 45 . . . . . 55 . . . . . . . . . Explosive 28 | . 7 4 5 5 . . 7 . . . . . . . . . Electromagnetic . | . . . . . . . . . . . . . . . . . Robot Hit Streak 13 | . 9 . 13 4 . . 13 . . . . . . . . . Robot Miss Streak 13 | . 13 . 3 1 . . 2 . . . . . . . . . Penetration Max 1 | . . . . . . . 1 . . . . . . . . . Secondary Targets 1 | . 1 . . . . . . . . . . . . . . . Max Gunslinging Chain 1 | . 1 . . . . . . . . . . . . . . . Shots Hit Robots 328 | . 80 . 105 4 . . 98 2 12 5 . 4 . 7 4 7 Core Hits 180 | . 36 7 45 9 . . 64 2 6 2 . 2 . 3 1 3 Critical Kills 2 | . . . 1 . . . 1 . . . . . . . . . Critical Parts Destroyed 4 | . 1 . . . . . 3 . . . . . . . . . Critical Strikes 15 | . 7 . 1 . . . 4 . . . . 1 . 1 . 1 Burn 6 | . 6 . . . . . . . . . . . . . . . Destroy 6 | . 1 . 1 . . . 4 . . . . . . . . . Sever 3 | . . . . . . . . . . . . 1 . 1 . 1 Melee Attacks 191 | . . . . . . . . 33 33 41 . 17 13 18 11 25 Impact . | . . . . . . . . . . . . . . . . . Slashing 191 | . . . . . . . . 33 33 41 . 17 13 18 11 25 Piercing . | . . . . . . . . . . . . . . . . . Sneak Attacks 10 | . . . . . . . . 1 2 . . 1 . 3 1 2 Combat Hostiles . | . . . . . . . . . . . . . . . . . Follow-up Attacks . | . . . . . . . . . . . . . . . . . Damage Inflicted 11415 | . 988 233 2091 347 . . 3874 249 935 261 . 416 . 819 416 786 Guns 4235 | . 891 . 1824 . . . 1520 . . . . . . . . . Cannons 1874 | . . . . . . . 1874 . . . . . . . . . Explosions 1413 | . 97 231 267 347 . . 471 . . . . . . . . . Melee 3882 | . . . . . . . . 249 935 261 . 416 . 819 416 786 Ramming 11 | . . 2 . . . . 9 . . . . . . . . . Kinetic 3948 | . 604 . 1824 . . . 1520 . . . . . . . . . Thermal 2161 | . 287 . . . . . 1874 . . . . . . . . . Explosive 1413 | . 97 231 267 347 . . 471 . . . . . . . . . Electromagnetic . | . . . . . . . . . . . . . . . . . Impact . | . . . . . . . . . . . . . . . . . Slashing 3882 | . . . . . . . . 249 935 261 . 416 . 819 416 786 Piercing . | . . . . . . . . . . . . . . . . . Highest Corruption 3 | . . . . . . . . 2 2 3 3 3 . 1 . . Average Corruption 2 | . . . . . . . . 2 1 2 3 3 . 1 . . Corruption Purged . | . . . . . . . . . . . . . . . . . Corruption Blocked . | . . . . . . . . . . . . . . . . . Effects 8 | . . . . . . . . . 1 6 . 1 . . . . Message Errors 1 | . . . . . . . . . . 1 . . . . . . Heat Flow Errors 1 | . . . . . . . . . . 1 . . . . . . Energy Discharges 4 | . . . . . . . . . . 3 . 1 . . . . Data Loss (minor) 2 | . . . . . . . . . 1 1 . . . . . . Overload Shots . | . . . . . . . . . . . . . . . . . Overflow Damage 595 | . . . . . . . 17 . 121 38 . 11 . 165 137 106 Projectiles 7 | . . . . . . . 7 . . . . . . . . . Explosions 10 | . . . . . . . 10 . . . . . . . . . Melee 578 | . . . . . . . . . 121 38 . 11 . 165 137 106 Knockbacks . | . . . . . . . . . . . . . . . . . Impact . | . . . . . . . . . . . . . . . . . Kinetic . | . . . . . . . . . . . . . . . . . Secondary . | . . . . . . . . . . . . . . . . . Self-Inflicted Damage 132 | . 21 20 68 23 . . . . . . . . . . . . Shots 5 | . 1 1 2 1 . . . . . . . . . . . . Rammed 3 | . . 1 . . . . 2 . . . . . . . . . Targets Rammed 4 | . . 1 . . . . 3 . . . . . . . . . Kicked . | . . . . . . . . . . . . . . . . . Crushed 1 | . . . . . . . 1 . . . . . . . . . Highest Temperature 501 | . 347 4 131 8 . . 501 298 1 119 . 15 . . 92 84 Average Temperature 87 | . 127 4 27 6 . . 124 151 1 60 . 15 . . 22 26 Received Heat Transfer 1359 | . 375 9 339 24 . . 540 . . . . 36 . . 9 27 Effects 7 | . 1 . . . . . 6 . . . . . . . . . Shutdowns 1 | . . . . . . . 1 . . . . . . . . . Energy Bleed 2 | . . . . . . . 2 . . . . . . . . . Interference 1 | . . . . . . . 1 . . . . . . . . . Matter Decay 1 | . 1 . . . . . . . . . . . . . . . Short Circuit 2 | . . . . . . . 2 . . . . . . . . . Siege Activations . | . . . . . . . . . . . . . . . . . Robots Corrupted . | . . . . . . . . . . . . . . . . . Combat Hostiles . | . . . . . . . . . . . . . . . . . Parts Fried . | . . . . . . . . . . . . . . . . . Impact Corruptions . | . . . . . . . . . . . . . . . . . Robots Melted . | . . . . . . . . . . . . . . . . . Combat Hostiles . | . . . . . . . . . . . . . . . . . Parts Melted 5 | . 2 . . . . . 3 . . . . . . . . . Heat Transferred 5535 | . 1295 . . . . . 4240 . . . . . . . . . Parts Sabotaged . | . . . . . . . . . . . . . . . . . Parts Stolen . | . . . . . . . . . . . . . . . . . Parts Stripped . | . . . . . . . . . . . . . . . . . Power Chain Reactions . | . . . . . . . . . . . . . . . . . Missiles Intercepted . | . . . . . . . . . . . . . . . . . Alert | -11 -10 -10 -9 -9 -9 -8 -8 -7 -6 -5 -5 -5 -4 -3 -2 -1 ------- Run | Scr Mat Min Mat Min Exi Min Mat Fac Fac Fac Was Fac Fac Res Res Acc Peak Influence 663 | . 326 125 663 402 . . 377 138 121 86 29 79 27 117 146 463 Initial 175 | . . 8 . 175 . . . 84 18 58 14 20 27 12 42 87 Average 139 | . 102 69 290 209 . . 155 75 63 46 15 35 13 69 100 224 Maximum Alert Level 2 | . 1 . 2 2 . . 1 . . . . . . . . 2 Low Security (%) 75 | 100 89 100 25 45 . 100 79 100 100 100 100 100 100 100 100 47 Level 1 18 | . 10 . 45 48 . . 20 . . . . . . . . 45 Level 2 6 | . . . 29 6 . . . . . . . . . . . 6 Level 3 . | . . . . . . . . . . . . . . . . . Level 4 . | . . . . . . . . . . . . . . . . . Level 5 . | . . . . . . . . . . . . . . . . . High Security . | . . . . . . . . . . . . . . . . . Max Security . | . . . . . . . . . . . . . . . . . Squads Dispatched 24 | . 2 . 5 1 . . 6 3 2 2 . . 1 1 . 1 Investigation 6 | . 1 . 2 1 . . 2 . . . . . . . . . Extermination 4 | . . . . . . . . . 2 1 . . . 1 . . Reinforcement 10 | . 1 . 2 . . . 1 3 . 1 . . 1 . . 1 Assault 1 | . . . 1 . . . . . . . . . . . . . Garrison 3 | . . . . . . . 3 . . . . . . . . . Intercept . | . . . . . . . . . . . . . . . . . Searches Triggered 1 | . . . . . . . . . . . . . . . . 1 Construction Impeded . | . . . . . . . . . . . . . . . . . Haulers Reinforced . | . . . . . . . . . . . . . . . . . Active Scanning Responses . | . . . . . . . . . . . . . . . . . Cargo Convoy Interrupts . | . . . . . . . . . . . . . . . . . Stealth | -11 -10 -10 -9 -9 -9 -8 -8 -7 -6 -5 -5 -5 -4 -3 -2 -1 --------- Run | Scr Mat Min Mat Min Exi Min Mat Fac Fac Fac Was Fac Fac Res Res Acc Distress Signals 14 | . 2 . 5 . . . 5 . . . . . . . . 2 Communications Jammed . | . . . . . . . . . . . . . . . . . Distress Signals . | . . . . . . . . . . . . . . . . . Times Spotted 219 | . 41 2 51 8 . . 49 6 8 3 6 8 . 4 6 27 Peak Tracking Total 8 | . 6 2 5 4 . . 6 2 2 2 6 5 . 2 6 8 Tactical Retreats 12 | . 1 . 3 1 . . . 1 1 . . . . 1 . 4 Traps | -11 -10 -10 -9 -9 -9 -8 -8 -7 -6 -5 -5 -5 -4 -3 -2 -1 ------- Run | Scr Mat Min Mat Min Exi Min Mat Fac Fac Fac Was Fac Fac Res Res Acc Traps Triggered 8 | . 1 . 2 1 . . 1 1 . 2 . . . . . . Indirectly . | . . . . . . . . . . . . . . . . . Trap Hack Attempts . | . . . . . . . . . . . . . . . . . Triggered . | . . . . . . . . . . . . . . . . . Disarmed . | . . . . . . . . . . . . . . . . . Reprogrammed . | . . . . . . . . . . . . . . . . . Reused . | . . . . . . . . . . . . . . . . . Traps Extracted . | . . . . . . . . . . . . . . . . . Installed . | . . . . . . . . . . . . . . . . . Triggered . | . . . . . . . . . . . . . . . . . Machines | -11 -10 -10 -9 -9 -9 -8 -8 -7 -6 -5 -5 -5 -4 -3 -2 -1 ---------- Run | Scr Mat Min Mat Min Exi Min Mat Fac Fac Fac Was Fac Fac Res Res Acc Machines Disabled 11 | . 1 . 3 . . . 1 . 2 . . 1 . 1 2 . Max in Single Turn 1 | . 1 . 1 . . . 1 . 1 . . 1 . 1 1 . Garrison Access 4 | . . . . . . . . . . 2 . 1 1 . . . Machines Sabotaged . | . . . . . . . . . . . . . . . . . Garrisons Compromised . | . . . . . . . . . . . . . . . . . Overloaded Fab Kills . | . . . . . . . . . . . . . . . . . Hacking | -11 -10 -10 -9 -9 -9 -8 -8 -7 -6 -5 -5 -5 -4 -3 -2 -1 --------- Run | Scr Mat Min Mat Min Exi Min Mat Fac Fac Fac Was Fac Fac Res Res Acc Machines Accessed 77 | . 9 . 9 2 2 . 13 8 6 9 . 5 3 6 2 3 Terminals 44 | . 6 . 6 . . . 7 5 4 3 . 4 2 3 2 2 Fabricators 5 | . . . . . . . . 1 1 1 . . . 2 . . Repair Stations 6 | . 1 . 2 . . . 1 1 . . . . . 1 . . Recycling Units 9 | . 2 . . . . . 2 1 . 3 . . . . . 1 Scanalyzers 4 | . . . 1 . . . 2 . 1 . . . . . . . Garrison Access 5 | . . . . . . . 1 . . 2 . 1 1 . . . Total Hacks 188 | . 19 . 27 2 2 . 37 20 13 19 . 10 13 16 6 4 Successful 141 | . 13 . 19 2 2 . 28 15 12 13 . 10 10 10 4 3 Failed 45 | . 6 . 8 . . . 9 5 1 5 . . 2 6 2 1 Catastrophic 4 | . . . 1 . . . . 1 . . . . . 1 1 . Database Lockouts 2 | . . . . . . . . . . 1 . . 1 . . . Manual 87 | . 12 . 12 . 1 . 15 11 3 7 . 6 7 7 5 1 Terminals 125 | . 14 . 15 . . . 22 14 8 10 . 9 12 12 6 3 Fabricators 6 | . . . . . . . . 2 1 1 . . . 2 . . Repair Stations 15 | . 2 . 5 . . . 4 2 . . . . . 2 . . Recycling Units 15 | . 3 . . . . . 4 2 . 5 . . . . . 1 Scanalyzers 15 | . . . 7 . . . 4 . 4 . . . . . . . Garrison Access 8 | . . . . . . . 3 . . 3 . 1 1 . . . Terminal Hacks 63 | . 4 . 5 2 2 . 10 7 5 5 . 7 7 4 3 2 Record 2 | . . . . . 1 . . . . . . . 1 . . . Part Schematic 1 | . . . . . . . . . 1 . . . . . . . Robot Analysis 8 | . 2 . . . . . 1 2 1 1 . . . . 1 . Prototype ID Bank 7 | . . . . . . . 1 . 2 1 . 1 2 . . . Open Door 3 | . . . . 2 . . . . . . . . . . . 1 Level Access Points 8 | . . . . . . . . 1 1 1 . 1 1 1 1 1 Branch Access Points 5 | . . . . . . . 1 1 . . . 1 . 1 1 . Machine Index 1 | . . . . . . . . . . . . 1 . . . . Repair Station Index 1 | . . . . . . . . . . . . . 1 . . . Scanalyzer Index 1 | . . . . . . . . 1 . . . . . . . . Alert Level 8 | . 1 . 2 . . . 3 . . 1 . 1 . . . . Unreport Threat 12 | . 1 . 2 . . . 2 2 . 1 . 1 1 2 . . Recall Assault 1 | . . . 1 . . . . . . . . . . . . . Hauler Manifests 4 | . . . . . . . 2 . . . . 1 1 . . . EX-Prototype ID Bank 1 | . . . . . 1 . . . . . . . . . . . Fabricator Hacks 5 | . . . . . . . . 1 1 1 . . . 2 . . Build 5 | . . . . . . . . 1 1 1 . . . 2 . . Repair Station Hacks 14 | . 2 . 4 . . . 4 2 . . . . . 2 . . Scan Component 7 | . 1 . 2 . . . 2 1 . . . . . 1 . . Repair 7 | . 1 . 2 . . . 2 1 . . . . . 1 . . Recycling Unit Hacks 12 | . 2 . . . . . 3 1 . 5 . . . . . 1 Report Inventory 9 | . 2 . . . . . 2 1 . 3 . . . . . 1 Retrieve Components 3 | . . . . . . . 1 . . 2 . . . . . . Scanalyzer 15 | . . . 7 . . . 4 . 4 . . . . . . . Insert Component 7 | . . . 3 . . . 2 . 2 . . . . . . . Analyze 8 | . . . 4 . . . 2 . 2 . . . . . . . Garrison Access Hacks 4 | . . . . . . . . . . 2 . 1 1 . . . Seal Access 4 | . . . . . . . . . . 2 . 1 1 . . . Unauthorized Hacks 28 | . 5 . 3 . . . 7 4 2 . . 2 2 2 1 . Terminals 28 | . 5 . 3 . . . 7 4 2 . . 2 2 2 1 . Botnet 26 | . 4 . 2 . . . 7 4 2 . . 2 2 2 1 . Operators 2 | . 1 . 1 . . . . . . . . . . . . . Fabricators . | . . . . . . . . . . . . . . . . . Repair Stations . | . . . . . . . . . . . . . . . . . Recycling Units . | . . . . . . . . . . . . . . . . . Scanalyzers . | . . . . . . . . . . . . . . . . . Garrison Access . | . . . . . . . . . . . . . . . . . Data Cores Recovered 3 | . . . 1 . . . 1 . . . . . . . . 1 Used . | . . . . . . . . . . . . . . . . . Hacking Detections 62 | . 9 . 8 . . . 12 8 6 7 . 3 1 4 2 2 Full Trace Events 2 | . . . . . . . 2 . . . . . . . . . Feedback Events . | . . . . . . . . . . . . . . . . . Feedback Blocked . | . . . . . . . . . . . . . . . . . Robot Schematics Acquired . | . . . . . . . . . . . . . . . . . Robots Built 4 | . . . . . . . . . . 1 . . . 3 . . Authchips . | . . . . . . . . . . . . . . . . . Time 227 | . . . . . . . . . . 40 . . . 187 . . Total Robot Build Rating 22 | . . . . . . . . . . 1 . . . 21 . . Part Schematics Acquired 7 | . . . 3 . . . 1 . 3 . . . . . . . Parts Built 5 | . . . . . . . . 1 2 . . . . 2 . . Authchips . | . . . . . . . . . . . . . . . . . Time 185 | . . . . . . . . 58 58 . . . . 69 . . Total Part Build Rating 39 | . . . . . . . . 7 14 . . . . 18 . . Parts Repaired 7 | . 1 . 2 . . . 2 1 . . . . . 1 . . Time 307 | . 26 . 134 . . . 76 22 . . . . . 49 . . Parts Recycled . | . . . . . . . . . . . . . . . . . Recycled Matter . | . . . . . . . . . . . . . . . . . Retrieved Matter . | . . . . . . . . . . . . . . . . . Retrieved Components 16 | . . . . . . . 10 . . 6 . . . . . . Parts Scanalyzed 6 | . . . 3 . . . 1 . 2 . . . . . . . Part Schematics Acquired 6 | . . . 3 . . . 1 . 2 . . . . . . . Parts Damaged . | . . . . . . . . . . . . . . . . . Bothacking | -11 -10 -10 -9 -9 -9 -8 -8 -7 -6 -5 -5 -5 -4 -3 -2 -1 ------------ Run | Scr Mat Min Mat Min Exi Min Mat Fac Fac Fac Was Fac Fac Res Res Acc Used RIF Installer . | . . . . . . . . . . . . . . . . . Robots Hacked . | . . . . . . . . . . . . . . . . . Non-combat . | . . . . . . . . . . . . . . . . . Combat . | . . . . . . . . . . . . . . . . . Robot Hacks Applied . | . . . . . . . . . . . . . . . . . Relay Couplers Released . | . . . . . . . . . . . . . . . . . Fabnet Peak Effective % . | . . . . . . . . . . . . . . . . . Robots Rewired . | . . . . . . . . . . . . . . . . . Allies Hacked . | . . . . . . . . . . . . . . . . . Hacks Repelled . | . . . . . . . . . . . . . . . . . Allies | -11 -10 -10 -9 -9 -9 -8 -8 -7 -6 -5 -5 -5 -4 -3 -2 -1 -------- Run | Scr Mat Min Mat Min Exi Min Mat Fac Fac Fac Was Fac Fac Res Res Acc Total Allies 5 | . . . . . . . . . . 1 1 . . 3 . . Largest Group 3 | . . . . . . . . . . 1 1 . . 3 . . Highest-Rated Group 144 | . . . . . . . . . . 10 31 . . 144 . . Highest-Rated Ally 48 | . . . . . . . . . . 10 31 . . 48 . . Total Orders . | . . . . . . . . . . . . . . . . . Ally Attacks . | . . . . . . . . . . . . . . . . . Total Damage . | . . . . . . . . . . . . . . . . . Kills . | . . . . . . . . . . . . . . . . . Allies Corrupted . | . . . . . . . . . . . . . . . . . Allies Melted . | . . . . . . . . . . . . . . . . . Intel | -11 -10 -10 -9 -9 -9 -8 -8 -7 -6 -5 -5 -5 -4 -3 -2 -1 ------- Run | Scr Mat Min Mat Min Exi Min Mat Fac Fac Fac Was Fac Fac Res Res Acc Robot Analysis Total 8 | . 2 . . . . . 1 2 1 1 . . . . 1 . Derelict Logs Recovered 2 | . . 1 . 1 . . . . . . . . . . . . Drone Launches . | . . . . . . . . . . . . . . . . . Drone Recoveries . | . . . . . . . . . . . . . . . . . Exploration | -11 -10 -10 -9 -9 -9 -8 -8 -7 -6 -5 -5 -5 -4 -3 -2 -1 ------------- Run | Scr Mat Min Mat Min Exi Min Mat Fac Fac Fac Was Fac Fac Res Res Acc Turns Passed 11662 | 89 1739 503 2172 574 431 729 2475 537 594 718 35 262 162 277 100 265 Spaces Moved 9775 | 51 845 307 1005 349 269 455 1292 1063 1047 929 116 533 304 460 224 526 Core 6 | 6 . . . . . . . . . . . . . . . . Treads 4549 | 45 801 307 1005 349 269 455 1292 26 . . . . . . . . Legs 44 | . 44 . . . . . . . . . . . . . . . Wheels . | . . . . . . . . . . . . . . . . . Hover . | . . . . . . . . . . . . . . . . . Flight 5176 | . . . . . . . . 1037 1047 929 116 533 304 460 224 526 Fastest Speed 21 | 50 160 160 160 160 160 160 150 31 27 26 28 28 32 28 21 25 Average Speed 89 | 147 161 160 160 160 160 160 155 33 27 27 28 30 32 28 23 25 Slowest Speed 232 | 160 190 160 160 160 160 160 232 150 31 28 28 32 32 28 25 26 Overloaded Moves . | . . . . . . . . . . . . . . . . . Propulsion Burnouts . | . . . . . . . . . . . . . . . . . Robots Hopped 27 | . . . . . . . . 5 9 3 . 1 . . . 9 Cave-ins Triggered . | . . . . . . . . . . . . . . . . . Exploration Rate (%) 46 | 5 96 71 78 67 66 94 78 30 32 27 82 22 11 12 7 17 Regions Visited 16 Branch Regions 4 Pre-discovered Areas 1 | . . . . . 1 . . . . . . . . . . . Known Exits Taken 8 | . . . 1 . . 1 . 1 1 . . 1 1 1 1 . Unknown Exits Taken 6 | 1 1 1 . 1 1 . 1 . . . . . . . . . Scrap Searched 6 | . . 2 . 2 . 2 . . . . . . . . . . Spaces Dug 132 | . . . . . . . 1 29 16 34 . 12 12 9 4 15 Terrain Destroyed 287 | . 32 21 38 34 . . 31 29 16 34 . 12 12 9 4 15 Melee 131 | . . . . . . . . 29 16 34 . 12 12 9 4 15 Projectile 4 | . . . . . . . 4 . . . . . . . . . AOE 152 | . 32 21 38 34 . . 27 . . . . . . . . . Terrain Rammed . | . . . . . . . . . . . . . . . . . Walls Destroyed . | . . . . . . . . . . . . . . . . . Machines Disabled . | . . . . . . . . . . . . . . . . . Actions | -11 -10 -10 -9 -9 -9 -8 -8 -7 -6 -5 -5 -5 -4 -3 -2 -1 --------- Run | Scr Mat Min Mat Min Exi Min Mat Fac Fac Fac Was Fac Fac Res Res Acc Total 11858 | 63 1077 315 1451 361 270 456 1611 1173 1277 1312 117 599 341 578 252 605 Wait 1256 | 1 95 . 291 2 . . 132 50 173 318 . 33 19 90 5 47 Move 9707 | 50 844 306 1004 348 268 454 1291 1052 1029 923 115 530 303 459 223 508 Hop 25 | . . . . . . . . 5 8 3 . 1 . . . 8 Pick Up 89 | 7 21 2 16 1 . . 11 6 8 5 . 1 2 4 3 2 Fast Attach 60 | 5 6 . 9 . 1 1 12 4 5 4 1 7 . 1 1 3 Attach 39 | . 4 . 3 . . . 4 8 5 3 . . 1 3 3 5 Detach 21 | . 1 . 2 . . . 2 3 3 3 . 1 . . 3 3 Swap 52 | . 7 . 17 2 . . 10 . 4 4 . 1 2 2 . 3 Drop 115 | . 16 2 28 3 1 1 20 12 9 8 1 8 1 1 3 1 Fire 299 | . 83 4 81 5 . . 126 . . . . . . . . . Melee 191 | . . . . . . . . 33 33 41 . 17 13 18 11 25 Ram . | . . . . . . . . . . . . . . . . . Kick . | . . . . . . . . . . . . . . . . . Crush 4 | . . 1 . . . . 3 . . . . . . . . . Escape Stasis . | . . . . . . . . . . . . . . . . . Rewire . | . . . . . . . . . . . . . . . . . Trap . | . . . . . . . . . . . . . . . . . Miscellaneous . | . . . . . . . . . . . . . . . . . Route ------- -11/Scrapyard -10/Materials (discovered 5 exits: *Mat x3 / [*Min x2]) -10/Mines (discovered 2 exits: *Mat x2) -9/Materials (discovered 4 exits: *Mat x3 / *Min) -9/Mines (discovered 3 exits: *Mat x2 / *Exi) -9/Exiles -8/Mines (discovered 2 exits: *Mat x2) -8/Materials (discovered 2 exits: *Fac x2) -7/Factory (discovered 7 exits: *Fac x4 / Sto / *Low x2) -6/Factory (discovered 4 exits: *Fac x4) -5/Factory (discovered 4 exits: Fac x4) -5/Waste -5/Factory (discovered 6 exits: *Fac x4 / Upp x2) -4/Factory (discovered 5 exits: *Res x4 / [*Upp]) -3/Research (discovered 6 exits: *Res x3 / Arm / Qua x2) -2/Research (discovered 5 exits: *Acc x3 / Tes x2) -1/Access To Epsilon Eridani History --------- Turn | Location | Event 65 | -11/Scrapyard | Discovered new exit (range 15) 90 | -11/Scrapyard | Entered Materials 247 | -10/Materials | Discovered new exit (range 15) 309 | -10/Materials | Build established: Mutant 433 | -10/Materials | Core integrity fell below 50% 494 | -10/Materials | Lost 3 parts (1p1n1w) 1068 | -10/Materials | Discovered new exit (range 12) 1076 | -10/Materials | Discovered new exit (range 15) 1220 | -10/Materials | Discovered new exit (range 12) 1332 | -10/Materials | Repaired Lgt. Ion Engine 1488 | -10/Materials | Discovered new exit (range 16) 1829 | -10/Materials | Entered Mines 1852 | -10/Mines | Found a hidden stash of uninstalled traps 1921 | -10/Mines | Met a Derelict bent on vengeance 1935 | -10/Mines | A weapon hastily lodged in a ceiling crevice suddenly fell to the ground 1943 | -10/Mines | Discovered new exit (range 13) 2057 | -10/Mines | Discovered new exit (range 12) 2093 | -10/Mines | Found a damaged Exp. Sensor Array with a note attached 2097 | -10/Mines | Found Prototype Device 2162 | -10/Mines | Learned 4 Materials zone layouts 2332 | -10/Mines | Entered Materials 2332 | -9/Materials | Evolved 2 slots: Propulsion x1, Utility x1 2333 | -9/Materials | Identified exit to Mines 2333 | -9/Materials | Identified exit to Materials 3063 | -9/Materials | Identified Exp. Sensor Array 3499 | -9/Materials | Repaired Exp. Sensor Array 3925 | -9/Materials | Discovered exit to Materials (range 5) 4179 | -9/Materials | Discovered exit to Materials (range 16) 4332 | -9/Materials | First assault squad dispatched 4432 | -9/Materials | Repaired Grenade Launcher 4504 | -9/Materials | Entered Mines 4534 | -9/Mines | Met a Derelict who couldn't figure out how to use a Trap Extractor 4745 | -9/Mines | Discovered exit to Materials (range 16) 4757 | -9/Mines | Met a Derelict shopkeep closing up shop 4853 | -9/Mines | Learned Materials stockpile data 4991 | -9/Mines | Deemed a non-threat by the Exiles lab entrance 4991 | -9/Mines | Discovered new exit (range 5) 5023 | -9/Mines | Discovered exit to Materials (range 10) 5032 | -9/Mines | Assembled infested the area 5078 | -9/Mines | Entered Exiles 5118 | -9/Exiles | Met 8R-AWN 5141 | -9/Exiles | Met EX-HEX 5206 | -9/Exiles | Met EX-DEC 5214 | -9/Exiles | Learned location of Zion (-6) 5242 | -9/Exiles | Met EX-BIN 5264 | -9/Exiles | Aligned with FarCom system 5266 | -9/Exiles | Given EX-Vault access code 5302 | -9/Exiles | Opened EX-Vault 5316 | -9/Exiles | Found Gui. Plasma Cannon 5351 | -9/Exiles | Warned to stay clear of 0b10 Research branches 5496 | -9/Exiles | Discovered new exit (range 10) 5509 | -9/Exiles | Left Exiles lab with Gui. Plasma Cannon 5509 | -9/Exiles | Entered Mines 5541 | -8/Mines | Discovered exit to Materials (range 8) 5607 | -8/Mines | Discovered exit to Materials (range 9) 6238 | -8/Mines | Entered Materials 6238 | -8/Materials | Evolved 2 slots: Utility x2 6840 | -8/Materials | Build established: Hacker-Mutant 6907 | -8/Materials | Discovered new exit (range 20) 7248 | -8/Materials | Repaired Hacking Suite 7328 | -8/Materials | Garrison activated, responded to threat 7510 | -8/Materials | Discovered new exit (range 20) 8043 | -8/Materials | Build established: Scavenger-Mutant 8152 | -8/Materials | Repaired Imp. Grenade Launcher 8713 | -8/Materials | Entered Factory 8713 | -7/Factory | Evolved 2 slots: Propulsion x1, Utility x1 8777 | -7/Factory | Identified exit to Factory 8808 | -7/Factory | Repaired Greatsword 9041 | -7/Factory | Build established: Hacker-Sprinter 9112 | -7/Factory | Discovered new exit (range 6) 9168 | -7/Factory | Discovered new exit (range 18) 9242 | -7/Factory | Identified exit to Storage 9242 | -7/Factory | Identified exit to Lower Caves 9246 | -7/Factory | Fabricated HERF Cannon? 9250 | -7/Factory | Entered another Factory area 9250 | -6/Factory | Evolved 2 slots: Propulsion x1, Utility x1 9420 | -6/Factory | Fabricated Lgt. Antimatter Reactor (x2) 9678 | -6/Factory | Identified exit to Factory 9844 | -6/Factory | Entered another Factory area 9844 | -5/Factory | Evolved 2 slots: Utility x2 9893 | -5/Factory | Fabricated A-02 Transporter? 9983 | -5/Factory | Build established: Hacker-Scout 10052 | -5/Factory | Identified exit to Factory 10542 | -5/Factory | Central database locked down 10562 | -5/Factory | Sucked down chute 10562 | -5/Factory | Entered Waste 10563 | -5/Waste | Met a frightened Derelict 10569 | -5/Waste | Found Prototype Slashing Weapon 10569 | -5/Waste | Identified Centrium Greatsword 10579 | -5/Waste | Spotted C-40 Crusher 10585 | -5/Waste | Spotted C-40 Crusher 10588 | -5/Waste | Spotted C-40 Crusher 10588 | -5/Waste | Spotted C-40 Crusher 10591 | -5/Waste | Spotted C-40 Crusher 10592 | -5/Waste | Spotted C-40 Crusher 10593 | -5/Waste | Discovered new exit (range 13) 10597 | -5/Waste | Entered Factory 10634 | -5/Factory | Identified exit to Upper Caves 10859 | -5/Factory | Entered another Factory area 10859 | -4/Factory | Evolved 2 slots: Power x1, Utility x1 10874 | -4/Factory | Identified exit to Research 10912 | -4/Factory | Central database locked down 10938 | -4/Factory | Discovered new exit (range 7) 10998 | -4/Factory | Spotted B-86 Titan 11021 | -4/Factory | Entered Research 11021 | -3/Research | Evolved 2 slots: Propulsion x1, Utility x1 11056 | -3/Research | Identified exit to Armory 11056 | -3/Research | Identified exit to Quarantine 11184 | -3/Research | Fabricated Enh. Quantum Rifle? 11193 | -3/Research | Repaired Centrium Greatsword 11200 | -3/Research | Identified exit to Research 11268 | -3/Research | Fabricated L-61 Swordsman? 11298 | -3/Research | Entered another Research area 11298 | -2/Research | Evolved 2 slots: Propulsion x2 11338 | -2/Research | Identified exit to Access 11338 | -2/Research | Identified exit to Testing 11398 | -2/Research | Entered Access 11398 | -1/Access | Evolved 2 slots: Utility x2 11511 | -1/Access | Identified exit to Surface 11606 | -1/Access | Spotted B-99 Colossus 11625 | -1/Access | Found Prototype Processor 11625 | -1/Access | Identified Exp. Armor Integrity Analyzer 11648 | -1/Access | Search patrols dispatched 11663 | *** | Escaped! Last Messages --------------- 11628_ O-32 Director destroyed. 11631_ Acquired data core, extracted dynamic key. 11632_ Discarded Faulty Exp. Armor Integrity Analyzer. 11632_ Acquired Imp. Hacking Suite. 11637_ Slug penetrates Wall. 11648_ ALERT: Heightened foreign activity detected, multiple search patrols dispatched. 11651_ Nuclear Pulse Array destroyed. 11651_ Slug penetrates Wall. 11653_ Slug penetrates H-88 Terminator. 11655_ Slug penetrates Wall. 11655_ Adv. Reaction Control System destroyed. 11655_ Surge Thruster destroyed. 11655_ Knocked back. 11655_ U-05 Engineer builds a Wall. 11655_ Penetrated by Slug. 11661_ Connecting with Terminal... >>Open(Door) Sealed Barrier opened. 11662_ The Access Shell folds into the floor. Map ----- +----------------------------------------------------+ | #????? ?## ""## # [ #####?#?????#?? ?? | | ? ? ? ??# T"## / +??? ???#?##??? | | ?????????# ""## ] # ## ??? ????#????? | | ??#??? ?##[! ""## # #??? "? ???#???? | | ????? ?#?#[ % ####/###? ?""? ?#?????? | | ??#??? ?## ## # #####?? ? #? ?"??? ??##???? | | ??#?? ??## ### ##?##?? ? ?# " ???????#?? | | ???##? #?# #??####??? ? ?? ? ?? ????????? | | ? #?# ??## #??###?### ? #? ? ? ????????? | | ????????# ##?#?###?#???##??? ?? ?????????? | | ?### ######## ####################+####????#???? | | ??#?# ? ???? | | ???## ???????? | | ???################## ""###?#??#??????????? | | ?????#??#?????????#?# ""##????????? ?????? | | ??????? ? ???####### ""#?????##??????????? | | ?? ?? ?????###?#?### T#??##?##?????? ???? | | ????? ????###?#?#### ""##??#?#??? ???????? | | ?????????? #????#?#?# ""##?##?????? ??????? | | ??????? ???????#???## ""##?????? ?????????? | | ??????? ? ???##??#?# ##?#???????? ???? | | ???????????#??#?##?## ##????????? ??????? | | ???????????###????#?# #?????????????????? | | ????????#?#??##?#???# #?????????????????? | | ? ?????????#??##?#?## #?????????????????? | | ??????????????##????# @" #?????#???????????? | | ???????????????#????# "" #??#???????? ? ???? | | ???????????????#????# #?????????????????? | | ????????????#?##????# #?????????????????? | | ????????? ?#?????##?# #????#????????????? | | ?????????????????#??#""""""""""#?#???????????????? | | ?????????????????????????????????????????????????? | | ????????????#???????????????????????##???????????? | | ???????????????????#??"???????"??????????????????? | | ??????????????????????????? ? ??????????????????? | | ??????????????????????BB????BB???????????????????? | | ??????????????????????BB????BB???????????????????? | | ????????????????????????????????????? ???????????? | | ???????????????????????????????#?????????????????? | | ?????????????????????????????????????????????????? | | ?????????????????????????????????????????????????? | | ?????????????????????????????????????????????????? | | ?????????????????????????????????????????????????? | | ?????????????????????????????????????????????????? | | ?????????????????????????????????????????????????? | | ?????????????????????????????????????????????????? | | ?????????????????????????????????????????????????? | | ?????????????????????????????????????????????????? | | ?????????????????????????????????????????????????? | | ?????????????????????????????????????????????????? | +----------------------------------------------------+ Best States ------------- Heat Dissipation 52 Energy Generation 41 Energy Capacity 600 Matter Stores 300 Matter Capacity 300 Sight Range 22 Terrain Scan Range 20 Terrain Scan Density 210 ECM Strength 2 Armor Coverage 225 Core Shielding 20 Melee Speed Boost 30 Evasion (%) 77 Recoil Reduction 3 Offensive Hacking 54 Defensive Hacking 26 Item Schematics ----------------- Exp. Sensor Array | -9/Materials | Scanalyzed Hacking Suite | -9/Materials | Scanalyzed Lgt. Nuclear Core | -9/Materials | Scanalyzed Adv. Terrain Scan Processor | -8/Materials | Scanalyzed Lgt. Antimatter Reactor | -6/Factory | Scanalyzed Imp. Cesium-ion Thruster | -6/Factory | Scanalyzed Nuclear Pulse Array | -6/Factory | Hacked Robot Schematics ------------------ None Fabricated ------------ HERF Cannon | x1 | -7/Factory | Preloaded Lgt. Antimatter Reactor | x2 | -6/Factory | Preloaded A-02 Transporter | x1 | -5/Factory | Preloaded Enh. Quantum Rifle | x2 | -3/Research | Preloaded L-61 Swordsman | x3 | -3/Research | Preloaded Alien Tech Used ----------------- None Achievements -------------- None Challenges ------------ None Game ------ Seed FlightDeliveryAccelerator Manual? 0 Play Time 02:33:00 Cumulative 88.5 hours Start 2022.03.18 @ 22:28:03 End 2022.03.19 @ 01:47:42 Sessions 1 Manual Loads 0 Difficulty Rogue Special Mode None Game No. 78 Rogue 78 Adventurer 0 Explorer 0 Win Type 0 Total 4 Types 3/0/1/0/0/0/0/0/0 Lore% 52 Gallery% 55 Achievement% 48 Wizard Run 0 Options --------- ASCII 1 Keyboard 1 Movement Numpad Keybinds 0 Fullscreen 2 Font 18/SmallcapsGlow Map View 76x50 Tactical HUD 1 Map Filters NONE Filters NONE Steam 1 RUN: 64bfa35c-f270-4c13-970c-fc74333b2e36